fUSD/lending_fUSD_20240617
["ID","MTS","AMOUNT","RATE_DAILY","PERIOD"]
[329769922,1718658644280,-319.99,0.00021917,2]
[329769923,1718658644290,-500.0,0.00021917,2]
[329769924,1718658644300,-500.0,0.00021917,2]
[329769925,1718658644310,-1631.52,0.00021917,2]
[329769926,1718658644320,-500.0,0.00021917,2]
[329769927,1718658644329,-500.0,0.00021917,2]
[329769928,1718658644339,-1283.86,0.00021917,2]
[329769929,1718658644348,-500.0,0.00021917,2]
[329769930,1718658644359,-500.0,0.00021917,2]
[329769931,1718658644375,-500.0,0.00021917,2]
[329769932,1718658644384,-500.0,0.00021917,2]
[329769933,1718658644393,-500.0,0.00021917,2]
[329769934,1718658644402,-574.26,0.00021917,2]
[329769935,1718658644411,-500.0,0.00021917,2]
[329769936,1718658644420,-557.8,0.00021917,2]
[329769937,1718658644429,-1450.99,0.00021917,2]
[329769938,1718658644438,-500.0,0.00021917,2]
[329769939,1718658644447,-500.0,0.00021917,2]
[329769940,1718658644456,-500.0,0.00021917,2]
[329769941,1718658644466,-742.47,0.00021917,2]
[329769942,1718658644475,-736.72,0.00021917,2]
[329769943,1718658644485,-500.0,0.00021917,2]
[329769944,1718658644495,-780.38,0.00021917,2]
[329769945,1718658644504,-543.21,0.00021917,2]
[329769946,1718658644514,-500.0,0.00021917,2]
[329769947,1718658644523,-1147.54,0.00021917,2]
[329769948,1718658644533,-500.0,0.00021917,2]
[329769949,1718658644543,-500.0,0.00021917,2]
[329769950,1718658644552,-938.77,0.00021917,2]
[329769951,1718658644562,-699.05,0.00021917,2]
[329769952,1718658644571,-882.26,0.00021917,2]
[329769953,1718658644580,-500.0,0.00021917,2]
[329769954,1718658644590,-1264.23,0.00021917,2]
[329769955,1718658644599,-1602.25,0.00021917,2]
[329769956,1718658644608,-500.0,0.00021917,2]
[329769957,1718658644623,-500.0,0.00021917,2]
[329769958,1718658644632,-757.89,0.00021917,2]
[329769959,1718658644642,-500.0,0.00021917,2]
[329769960,1718658644651,-1054.2,0.00021917,2]
[329769961,1718658644660,-500.0,0.00021917,2]
[329769962,1718658644669,-510.16,0.00021917,2]
[329769963,1718658644678,-663.19,0.00021917,2]
[329769964,1718658644687,-500.0,0.00021917,2]
[329769965,1718658644697,-899.13,0.00021917,2]
[329769966,1718658644706,-1158.56,0.00021917,2]
[329769967,1718658644715,-1186.77,0.00021917,2]
[329769968,1718658644726,-500.0,0.00021917,2]
[329769969,1718658644736,-500.0,0.00021917,2]
[329769970,1718658644745,-539.97,0.00021917,2]
[329769971,1718658644754,-500.0,0.00021917,2]
[329769972,1718658644764,-503.7,0.00021917,2]
[329769973,1718658644773,-1311.11,0.00021917,2]
[329769974,1718658644783,-500.0,0.00021917,2]
[329769975,1718658644792,-500.0,0.00021917,2]
[329769976,1718658644801,-5572.63,0.00021917,2]
[329769977,1718658644810,-618.88,0.00021917,2]
[329769978,1718658644820,-1632.71,0.00021917,2]
[329769979,1718658644829,-500.0,0.00021917,2]
[329769980,1718658644838,-618.71,0.00021917,2]
[329769981,1718658644848,-500.0,0.00021917,2]
[329769982,1718658644857,-542.20394995,0.00021917,2]
[329769983,1718658644874,-1555.45,0.00021917,2]
[329769984,1718658644883,-500.0,0.00021917,2]
[329769985,1718658644894,-1224.09,0.00021917,2]
[329769986,1718658644904,-953.58,0.00021917,2]
[329769987,1718658644913,-500.0,0.00021917,2]
[329769988,1718658644923,-500.0,0.00021917,2]
[329769989,1718658644932,-1259.52,0.00021917,2]
[329769990,1718658644941,-25271.03,0.00021917,2]
[329769991,1718658644951,-585.5,0.00021917,2]
[329769992,1718658644959,-500.0,0.00021917,2]
[329769993,1718658644969,-500.0,0.00021917,2]
[329769994,1718658644978,-500.0,0.00021917,2]
[329769995,1718658644987,-4816.44,0.00021917,2]
[329769996,1718658644996,-500.0,0.00021917,2]
[329769997,1718658645006,-290.43341111,0.00021917,2]
[329769998,1718658645015,-606.25,0.00021917,2]
[329769999,1718658645025,-500.0,0.00021917,2]
[329770000,1718658645034,-588.26,0.00021917,2]
[329770001,1718658645044,-1514.81,0.00021917,2]
[329770002,1718658645053,-500.0,0.00021917,2]
[329770003,1718658645063,-500.0,0.00021917,2]
[329770004,1718658645073,-500.0,0.00021917,2]
[329770005,1718658645083,-16376.97,0.00021917,2]
[329770006,1718658645093,-784.58,0.00021917,2]
[329770007,1718658645102,-500.0,0.00021917,2]
[329770008,1718658645117,-44344.24,0.00021917,2]
[329770009,1718658645127,-500.0,0.00021917,2]
[329770010,1718658645137,-987.52,0.00021917,2]
[329770011,1718658645147,-500.0,0.00021917,2]
[329770012,1718658645156,-1456.21,0.00021917,2]
[329770013,1718658645167,-500.0,0.00021917,2]
[329770014,1718658645176,-500.0,0.00021917,2]
[329770015,1718658645187,-500.0,0.00021917,2]
[329770016,1718658645201,-753.01,0.00021917,2]
[329770017,1718658645211,-500.0,0.00021917,2]
[329770018,1718658645220,-1074.21,0.00021917,2]
[329770019,1718658645230,-633.71,0.00021917,2]
[329770020,1718658645239,-500.0,0.00021917,2]
[329770021,1718658645248,-1777.15,0.00021917,2]
[329770022,1718658645258,-41686.83,0.00021917,2]
[329770023,1718658645267,-500.0,0.00021917,2]
[329770024,1718658645280,-582.49,0.00021917,2]
[329770025,1718658645290,-873.91,0.00021917,2]
[329770026,1718658645300,-500.0,0.00021917,2]
[329770027,1718658645309,-5149.07,0.00021917,2]
[329770028,1718658645319,-500.0,0.00021917,2]
[329770029,1718658645329,-3813.12,0.00021917,2]
[329770030,1718658645339,-500.0,0.00021917,2]
[329770031,1718658645348,-985.44,0.00021917,2]
[329770032,1718658645357,-500.0,0.00021917,2]
[329770033,1718658645369,-533.58,0.00021917,2]
[329770034,1718658645382,-3050.3,0.00021917,2]
[329770035,1718658645391,-500.0,0.00021917,2]
[329770036,1718658645401,-500.0,0.00021917,2]
[329770037,1718658645410,-575.32,0.00021917,2]
[329770039,1718658645419,-637.9,0.00021917,2]
[329770041,1718658645428,-500.0,0.00021917,2]
[329770043,1718658645438,-9417.37,0.00021917,2]
[329770045,1718658645447,-899.19,0.00021917,2]
[329770047,1718658645457,-500.0,0.00021917,2]
[329770049,1718658645467,-1699.99,0.00021917,2]
[329770051,1718658645477,-3375.55,0.00021917,2]
[329770053,1718658645486,-500.0,0.00021917,2]
[329770055,1718658645495,-500.0,0.00021917,2]
[329770057,1718658645504,-500.0,0.00021917,2]
[329770059,1718658645514,-500.0,0.00021917,2]
[329770060,1718658645523,-500.0,0.00021917,2]
[329770063,1718658645533,-500.0,0.00021917,2]
[329770065,1718658645543,-3981.88,0.00021917,2]
[329770067,1718658645553,-500.0,0.00021917,2]
[329770070,1718658645563,-549.26,0.00021917,2]
[329770073,1718658645573,-2571.3,0.00021917,2]
[329770076,1718658645583,-500.0,0.00021917,2]
[329770079,1718658645592,-500.0,0.00021917,2]
[329770082,1718658645601,-3463.34,0.00021917,2]
[329770085,1718658645612,-500.0,0.00021917,2]
[329770088,1718658645628,-500.0,0.00021917,2]
[329770091,1718658645637,-500.0,0.00021917,2]
[329770094,1718658645647,-500.0,0.00021917,2]
[329770097,1718658645656,-500.0,0.00021917,2]
[329770099,1718658645666,-745.65,0.00021917,2]
[329770101,1718658645677,-1853.67,0.00021917,2]
[329770103,1718658645687,-500.0,0.00021917,2]
[329770105,1718658645697,-500.0,0.00021917,2]
[329770107,1718658645707,-967.8,0.00021917,2]
[329770109,1718658645717,-7446.77,0.00021917,2]
[329770111,1718658645727,-500.0,0.00021917,2]
[329770112,1718658645736,-532.31,0.00021917,2]
[329770114,1718658645746,-4087.15,0.00021917,2]
[329770116,1718658645756,-594.59,0.00021917,2]
[329770118,1718658645766,-2080.42,0.00021917,2]
[329770120,1718658645776,-3582.17004899,0.00021917,2]
[329770121,1718658645840,-577.28995101,0.00021917,2]
[329770122,1718658645850,-976.62,0.00021917,2]
[329770123,1718658645859,-466.0,0.00021917,2]
[329770124,1718658645877,-4902.89027306,0.00021917,2]
[329770125,1718658645947,-711.64092471,0.00021917,2]
[329770126,1718658646172,-7948.69497616,0.00021634,2]
[329770127,1718658646184,-7268.61880223,0.00021917,2]
[329770128,1718658646194,-421.64487411,0.00021917,2]
[329770129,1718658646204,-1728.41,0.00021917,2]
[329770130,1718658646213,-500.0,0.00021917,2]
[329770131,1718658646224,-584.23,0.00021917,2]
[329770132,1718658646233,-10115.24,0.00021917,2]
[329770133,1718658646243,-659.85,0.00021917,2]
[329770134,1718658646252,-500.0,0.00021917,2]
[329770135,1718658646261,-5110.27,0.00021917,2]
[329770136,1718658646274,-1943.89,0.00021917,2]
[329770137,1718658646284,-511.26,0.00021917,2]
[329770138,1718658646293,-500.0,0.00021917,2]
[329770139,1718658646302,-871.96,0.00021917,2]
[329770140,1718658646311,-500.0,0.00021917,2]
[329770141,1718658646321,-500.0,0.00021917,2]
[329770142,1718658646330,-2450.09,0.00021917,2]
[329770143,1718658646338,-500.0,0.00021917,2]
[329770144,1718658646348,-12843.73,0.00021917,2]
[329770145,1718658646357,-4047.16,0.00021917,2]
[329770146,1718658646374,-853.1,0.00021917,2]
[329770147,1718658646384,-500.0,0.00021917,2]
[329770148,1718658646393,-1001.74,0.00021917,2]
[329770149,1718658646403,-1201.84,0.00021917,2]
[329770150,1718658646413,-1890.36,0.00021917,2]
[329770151,1718658646422,-500.0,0.00021917,2]
[329770152,1718658646432,-2689.57,0.00021917,2]
[329770153,1718658646441,-13327.67,0.00021917,2]
[329770154,1718658646450,-500.0,0.00021917,2]
[329770155,1718658646459,-8153.35,0.00021917,2]
[329770156,1718658646469,-500.0,0.00021917,2]
[329770157,1718658646479,-500.0,0.00021917,2]
[329770158,1718658646488,-665.65,0.00021917,2]
[329770159,1718658646498,-5618.47,0.00021917,2]
[329770160,1718658646507,-500.0,0.00021917,2]
[329770161,1718658646516,-500.0,0.00021917,2]
[329770162,1718658646526,-874.59,0.00021917,2]
[329770163,1718658646536,-500.0,0.00021917,2]
[329770164,1718658646546,-465.6605032,0.00021917,2]
[329770165,1718658646555,-1439.43,0.00021917,2]
[329770166,1718658646564,-2583.42,0.00021917,2]
[329770167,1718658646573,-500.0,0.00021917,2]
[329770168,1718658646583,-500.0,0.00021917,2]
[329770169,1718658646593,-4387.13,0.00021917,2]
[329770170,1718658646602,-4029.93,0.00021917,2]
[329770171,1718658646613,-500.0,0.00021917,2]
[329770172,1718658646626,-500.0,0.00021917,2]
[329770173,1718658646635,-783.93,0.00021917,2]
[329770174,1718658646645,-4892.2,0.00021917,2]
[329770175,1718658646654,-1711.1,0.00021917,2]
[329770176,1718658646664,-878.76,0.00021917,2]
[329770177,1718658646673,-500.0,0.00021917,2]
[329770178,1718658646683,-500.0,0.00021917,2]
[329770179,1718658646692,-11046.43,0.00021917,2]
[329770180,1718658646701,-3679.58,0.00021917,2]
[329770181,1718658646710,-500.0,0.00021917,2]
[329770182,1718658646719,-816.52,0.00021917,2]
[329770183,1718658646728,-500.0,0.00021917,2]
[329770184,1718658646737,-500.0,0.00021917,2]
[329770185,1718658646746,-500.0,0.00021917,2]
[329770186,1718658646755,-500.0,0.00021917,2]
[329770187,1718658646764,-738.02,0.00021917,2]
[329770188,1718658646773,-500.0,0.00021917,2]
[329770189,1718658646783,-5283.2,0.00021917,2]
[329770190,1718658646792,-1932.78,0.00021917,2]
[329770191,1718658646801,-2642.00952577,0.00021917,2]
[329770192,1718658646815,-884.24749782,0.00021917,2]
[329770193,1718658647030,-238.04287716,0.00021817,2]
[329770194,1718658647039,-5885.18774778,0.00021917,2]
[329770195,1718658647050,-1004.78665348,0.00021917,2]
[329770196,1718658648299,-469.65,0.00021917,2]
[329770197,1718658648311,-962.63936826,0.00021917,2]
[329770198,1718658648362,-8304.39920689,0.00021917,2]
[329770199,1718658648376,-505.55,0.00021917,2]
[329770200,1718658648386,-500.0,0.00021917,2]
[329770201,1718658648396,-905.4,0.00021917,2]
[329770202,1718658648406,-1697.56,0.00021917,2]
[329770203,1718658648416,-1799.55,0.00021917,2]
[329770204,1718658648426,-500.0,0.00021917,2]
[329770205,1718658648435,-204.11560926,0.00021917,2]
[329770206,1718658648445,-500.0,0.00021917,2]
[329770207,1718658648454,-4144.97,0.00021917,2]
[329770208,1718658648464,-2931.5,0.00021917,2]
[329770209,1718658648474,-649.32,0.00021917,2]
[329770210,1718658648483,-500.0,0.00021917,2]
[329770211,1718658648494,-8858.03,0.00021917,2]
[329770212,1718658648503,-500.0,0.00021917,2]
[329770213,1718658648512,-534.61,0.00021917,2]
[329770214,1718658648522,-3462.9,0.00021917,2]
[329770215,1718658648531,-1571.02,0.00021917,2]
[329770216,1718658648541,-925.04,0.00021917,2]
[329770217,1718658648550,-927.78,0.00021917,2]
[329770218,1718658648560,-22175.71,0.00021917,2]
[329770219,1718658648570,-500.0,0.00021917,2]
[329770220,1718658648579,-14660.77,0.00021917,2]
[329770221,1718658648589,-2770.3,0.00021917,2]
[329770222,1718658648598,-4772.86,0.00021917,2]
[329770223,1718658648608,-500.0,0.00021917,2]
[329770224,1718658648624,-2268.12,0.00021917,2]
[329770225,1718658648634,-920.06,0.00021917,2]
[329770226,1718658648643,-500.0,0.00021917,2]
[329770227,1718658648653,-1479.39,0.00021917,2]
[329770228,1718658648662,-682.85,0.00021917,2]
[329770229,1718658648672,-847.86,0.00021917,2]
[329770230,1718658648681,-533.79,0.00021917,2]
[329770231,1718658648690,-500.0,0.00021917,2]
[329770232,1718658648698,-568.22,0.00021917,2]
[329770233,1718658648708,-696.11,0.00021917,2]
[329770234,1718658648717,-500.0,0.00021917,2]
[329770235,1718658648726,-4682.77,0.00021917,2]
[329770236,1718658648736,-2045.53,0.00021917,2]
[329770237,1718658648745,-500.0,0.00021917,2]
[329770238,1718658648755,-500.0,0.00021917,2]
[329770239,1718658648764,-3461.68,0.00021917,2]
[329770240,1718658648773,-500.0,0.00021917,2]
[329770241,1718658648783,-923.69,0.00021917,2]
[329770242,1718658648792,-7077.72,0.00021917,2]
[329770243,1718658648801,-13492.05,0.00021917,2]
[329770244,1718658648811,-5091.74,0.00021917,2]
[329770245,1718658648821,-1682.21,0.00021917,2]
[329770246,1718658648831,-500.0,0.00021917,2]
[329770247,1718658648841,-672.62,0.00021917,2]
[329770248,1718658648851,-6195.02,0.00021917,2]
[329770249,1718658648860,-2453.89,0.00021917,2]
[329770250,1718658648876,-5715.21,0.00021917,2]
[329770251,1718658648886,-2011.97,0.00021917,2]
[329770252,1718658648895,-853.62,0.00021917,2]
[329770253,1718658648907,-4048.06,0.00021917,2]
[329770254,1718658648916,-500.0,0.00021917,2]
[329770255,1718658648926,-500.0,0.00021917,2]
[329770256,1718658648936,-500.0,0.00021917,2]
[329770257,1718658648946,-500.0,0.00021917,2]
[329770258,1718658648956,-500.0,0.00021917,2]
[329770259,1718658648966,-3953.46,0.00021917,2]
[329770260,1718658648976,-4359.06,0.00021917,2]
[329770261,1718658648985,-1111.24,0.00021917,2]
[329770262,1718658648995,-538.46,0.00021917,2]
[329770263,1718658649004,-500.0,0.00021917,2]
[329770264,1718658649014,-500.0,0.00021917,2]
[329770265,1718658649024,-530.46,0.00021917,2]
[329770266,1718658649033,-500.0,0.00021917,2]
[329770267,1718658649043,-2080.0,0.00021917,2]
[329770268,1718658649053,-370.33792281,0.00021917,2]
[329770269,1718658649063,-500.0,0.00021917,2]
[329770270,1718658649073,-930.16,0.00021917,2]
[329770271,1718658649083,-500.0,0.00021917,2]
[329770272,1718658649092,-5691.28,0.00021917,2]
[329770273,1718658649103,-500.0,0.00021917,2]
[329770274,1718658649115,-500.0,0.00021917,2]
[329770275,1718658649127,-1925.85,0.00021917,2]
[329770276,1718658649137,-500.0,0.00021917,2]
[329770277,1718658649146,-9499.8,0.00021917,2]
[329770278,1718658649156,-1347.8,0.00021917,2]
[329770279,1718658649166,-1335.78,0.00021917,2]
[329770280,1718658649176,-1746.75,0.00021917,2]
[329770281,1718658649192,-500.0,0.00021917,2]
[329770282,1718658649202,-940.18,0.00021917,2]
[329770283,1718658649212,-500.0,0.00021917,2]
[329770284,1718658649223,-1047.79,0.00021917,2]
[329770285,1718658649233,-593.75,0.00021917,2]
[329770286,1718658649244,-830.4,0.00021917,2]
[329770287,1718658649254,-2642.53,0.00021917,2]
[329770288,1718658649266,-43047.54,0.00021917,2]
[329770289,1718658649278,-500.0,0.00021917,2]
[329770290,1718658649287,-500.0,0.00021917,2]
[329770291,1718658649298,-566.54,0.00021917,2]
[329770292,1718658649309,-182.86486724,0.00021917,2]
[329770293,1718658649320,-500.0,0.00021917,2]
[329770294,1718658649331,-500.0,0.00021917,2]
[329770295,1718658649568,-6820.33,0.00021917,2]
[329770296,1718658649579,-2267.5,0.00021917,2]
[329770297,1718658649588,-3451.67,0.00021917,2]
[329770298,1718658649598,-970.22,0.00021917,2]
[329770299,1718658649608,-979.41,0.00021917,2]
[329770300,1718658649625,-764.6,0.00021917,2]
[329770301,1718658649635,-11496.29,0.00021917,2]
[329770302,1718658649645,-5349.68,0.00021917,2]
[329770303,1718658649655,-2786.33,0.00021917,2]
[329770304,1718658649664,-1018.03,0.00021917,2]
[329770305,1718658649674,-577.12,0.00021917,2]
[329770306,1718658649683,-500.0,0.00021917,2]
[329770307,1718658649692,-1004.1,0.00021917,2]
[329770308,1718658649702,-500.0,0.00021917,2]
[329770309,1718658649711,-811.15,0.00021917,2]
[329770310,1718658649720,-3947.45,0.00021917,2]
[329770311,1718658649729,-1360.93,0.00021917,2]
[329770312,1718658649739,-500.0,0.00021917,2]
[329770313,1718658649748,-607.96,0.00021917,2]
[329770314,1718658649757,-3888.89,0.00021917,2]
[329770315,1718658649767,-9804.19,0.00021917,2]
[329770316,1718658649776,-500.0,0.00021917,2]
[329770317,1718658649785,-500.0,0.00021917,2]
[329770318,1718658649795,-2297.97,0.00021917,2]
[329770319,1718658649804,-1424.6,0.00021917,2]
[329770320,1718658649814,-500.0,0.00021917,2]
[329770321,1718658649824,-1233.63,0.00021917,2]
[329770322,1718658649833,-500.0,0.00021917,2]
[329770323,1718658649842,-529.98,0.00021917,2]
[329770324,1718658649851,-500.0,0.00021917,2]
[329770325,1718658649861,-500.0,0.00021917,2]
[329770326,1718658649873,-979.41,0.00021917,2]
[329770327,1718658649883,-500.0,0.00021917,2]
[329770328,1718658649892,-2542.12,0.00021917,2]
[329770329,1718658649902,-500.0,0.00021917,2]
[329770330,1718658649912,-834.88,0.00021917,2]
[329770331,1718658649922,-3837.11,0.00021917,2]
[329770332,1718658649932,-2077.19,0.00021917,2]
[329770333,1718658649941,-3738.61,0.00021917,2]
[329770334,1718658649950,-500.0,0.00021917,2]
[329770335,1718658649960,-2752.83,0.00021917,2]
[329770336,1718658649969,-844.37,0.00021917,2]
[329770337,1718658649979,-1966.32,0.00021917,2]
[329770338,1718658649989,-4922.82,0.00021917,2]
[329770339,1718658649998,-1653.46,0.00021917,2]
[329770340,1718658650008,-1561.34,0.00021917,2]
[329770341,1718658650017,-500.0,0.00021917,2]
[329770342,1718658650027,-517.17774335,0.00021917,2]
[329770343,1718658650036,-500.0,0.00021917,2]
[329770344,1718658650045,-500.0,0.00021917,2]
[329770345,1718658650056,-500.0,0.00021917,2]
[329770346,1718658650066,-500.0,0.00021917,2]
[329770347,1718658650076,-5722.16,0.00021917,2]
[329770348,1718658650086,-500.0,0.00021917,2]
[329770349,1718658650096,-500.0,0.00021917,2]
[329770350,1718658650106,-4242.72,0.00021917,2]
[329770351,1718658650117,-500.0,0.00021917,2]
[329770352,1718658650126,-3205.22,0.00021917,2]
[329770353,1718658650135,-3800.32,0.00021917,2]
[329770354,1718658650144,-500.0,0.00021917,2]
[329770355,1718658650153,-605.09,0.00021917,2]
[329770356,1718658650162,-500.0,0.00021917,2]
[329770357,1718658650172,-862.85,0.00021917,2]
[329770358,1718658650182,-1878.44,0.00021917,2]
[329770359,1718658650196,-1678.4,0.00021917,2]
[329770360,1718658650206,-1004.1,0.00021917,2]
[329770361,1718658650216,-1777.27,0.00021917,2]
[329770362,1718658650227,-500.0,0.00021917,2]
[329770363,1718658650236,-6577.92,0.00021917,2]
[329770364,1718658650246,-500.0,0.00021917,2]
[329770365,1718658650256,-500.0,0.00021917,2]
[329770366,1718658650266,-198.72,0.00021917,2]
[329770367,1718658650278,-600.79,0.00021917,2]
[329770368,1718658650288,-3213.92,0.00021917,2]
[329770369,1718658650299,-717.84,0.00021917,2]
[329770370,1718658650308,-544.68,0.00021917,2]
[329770371,1718658650318,-500.0,0.00021917,2]
[329770372,1718658650327,-3538.02,0.00021917,2]
[329770373,1718658650337,-7518.91,0.00021917,2]
[329770374,1718658650346,-500.0,0.00021917,2]
[329770375,1718658650356,-1763.22,0.00021917,2]
[329770376,1718658650368,-1002.47,0.00021917,2]
[329770377,1718658650377,-1974.8,0.00021917,2]
[329770378,1718658650386,-163.65,0.00021918,2]
[329770379,1718658650396,-250.0,0.00021918,2]
[329770380,1718658650405,-7930.22226183,0.00022014,2]
[329770381,1718658650414,-4126.1963585,0.00022091,2]
[329770382,1718658650424,-217.55252095,0.00022091,2]
[329770383,1718658650434,-7930.22226183,0.00022112,2]
[329770384,1718658650443,-177.27972599,0.00022178,2]
[329770385,1718658650452,-500.0,0.00022191,3]
[329770386,1718658650462,-500.0,0.00022191,3]
[329770387,1718658650471,-500.0,0.00022191,3]
[329770388,1718658650481,-500.0,0.00022191,3]
[329770389,1718658650491,-595.49,0.00022191,3]
[329770390,1718658650501,-536.31,0.00022191,3]
[329770391,1718658650510,-500.0,0.00022191,3]
[329770392,1718658650520,-503.23,0.00022191,3]
[329770393,1718658650530,-500.0,0.00022191,3]
[329770394,1718658650539,-500.0,0.00022191,3]
[329770395,1718658650549,-500.0,0.00022191,2]
[329770396,1718658650559,-500.0,0.00022191,3]
[329770397,1718658650569,-500.0,0.00022191,3]
[329770398,1718658650578,-557.18,0.00022191,3]
[329770399,1718658650589,-500.0,0.00022191,3]
[329770400,1718658650599,-500.0,0.00022191,3]
[329770401,1718658650610,-500.0,0.00022191,3]
[329770402,1718658650621,-500.0,0.00022191,3]
[329770403,1718658650630,-500.0,0.00022191,3]
[329770404,1718658650640,-500.0,0.00022191,3]
[329770405,1718658650650,-500.0,0.00022191,3]
[329770406,1718658650660,-500.0,0.00022191,3]
[329770407,1718658650670,-500.0,0.00022191,3]
[329770408,1718658650680,-500.0,0.00022191,3]
[329770409,1718658650689,-500.0,0.00022191,3]
[329770410,1718658650699,-787.65,0.00022191,3]
[329770411,1718658650708,-500.0,0.00022191,3]
[329770412,1718658650718,-500.0,0.00022191,3]
[329770413,1718658650728,-500.0,0.00022191,3]
[329770414,1718658650737,-500.0,0.00022191,3]
[329770415,1718658650747,-500.0,0.00022191,3]
[329770416,1718658650756,-500.0,0.00022191,3]
[329770417,1718658650766,-500.0,0.00022191,3]
[329770418,1718658650775,-500.0,0.00022191,3]
[329770419,1718658650785,-500.0,0.00022191,3]
[329770420,1718658650795,-500.0,0.00022191,3]
[329770421,1718658650804,-686.37,0.00022191,3]
[329770422,1718658650815,-608.59,0.00022191,3]
[329770423,1718658650825,-500.0,0.00022191,3]
[329770424,1718658650835,-500.0,0.00022191,3]
[329770425,1718658650844,-500.0,0.00022191,3]
[329770426,1718658650854,-500.0,0.00022191,3]
[329770427,1718658650866,-500.0,0.00022191,3]
[329770428,1718658650875,-500.0,0.00022191,3]
[329770429,1718658650885,-500.0,0.00022191,3]
[329770430,1718658650894,-500.0,0.00022191,3]
[329770431,1718658650903,-500.0,0.00022191,3]
[329770432,1718658650915,-410.4179698,0.00022191,3]
[329770433,1718658650924,-532.86905255,0.00022191,3]
[329770434,1718658650933,-260.2230069,0.00022191,3]
[329770435,1718658650942,-500.0,0.00022191,3]
[329770436,1718658650951,-500.0,0.00022191,3]
[329770437,1718658650960,-421.96783315,0.00022191,3]
[329770438,1718658650970,-500.0,0.00022191,3]
[329770439,1718658650980,-500.0,0.00022191,3]
[329770440,1718658650990,-395.71060518,0.00022191,3]
[329770441,1718658650999,-500.0,0.00022191,3]
[329770442,1718658651009,-500.0,0.00022191,3]
[329770443,1718658651020,-500.0,0.00022191,3]
[329770444,1718658651030,-500.0,0.00022191,3]
[329770445,1718658651040,-500.0,0.00022191,3]
[329770446,1718658651050,-500.0,0.00022191,3]
[329770447,1718658651059,-542.92,0.00022191,3]
[329770448,1718658651070,-500.0,0.00022191,3]
[329770449,1718658651080,-1460.04,0.00022191,3]
[329770450,1718658651089,-500.0,0.00022191,3]
[329770451,1718658651099,-500.0,0.00022191,3]
[329770452,1718658651109,-500.0,0.00022191,3]
[329770453,1718658651122,-1177.68,0.00022191,3]
[329770454,1718658651131,-802.96,0.00022191,3]
[329770455,1718658651141,-1021.63,0.00022191,3]
[329770456,1718658651151,-500.0,0.00022191,3]
[329770457,1718658651161,-500.0,0.00022191,3]
[329770458,1718658651171,-749.89,0.00022191,3]
[329770459,1718658651182,-500.0,0.00022191,3]
[329770460,1718658651192,-652.78,0.00022191,3]
[329770461,1718658651204,-500.0,0.00022191,3]
[329770462,1718658651213,-500.0,0.00022191,3]
[329770463,1718658651223,-500.0,0.00022191,3]
[329770464,1718658651233,-500.0,0.00022191,3]
[329770465,1718658651243,-500.0,0.00022191,3]
[329770466,1718658651254,-577.35,0.00022191,3]
[329770467,1718658651263,-500.0,0.00022191,3]